Cogmind - Beta 14 *** ADVENTURER MODE // 2024.09.09 @ 15:44:47 Player: Isoceth Result: Self-destructed Performance ------------- Evolutions (1) 500 Regions Visited (3) 600 Robots Destroyed (27) 135 Value Destroyed (586) 586 Prototype IDs (3) 60 Alien Tech Used (0) 0 Bonus (0) 0 TOTAL SCORE: 1881 Bonus ------- None Cogmind --------- Core Integrity 400/400 Matter 300/300 Energy 250/250 System Corruption 0% Temperature Cool (0) Movement Treading (160) Location -9/Materials Parts ------- > --- POWER (1) -------- Ion Engine > --- PROPULSION (3) --- Light Treads Light Treads Light Treads > --- UTILITY (3) ------ Large Storage Unit Experimental Sensor Array Signal Interpreter > --- WEAPON (2) ------- EM Pulse Gun Medium Laser > --- INVENTORY (15) --- Ion Engine Light Treads Small Battery (100) Grenade Launcher Peak State ------------ > --- POWER ------------ Ion Engine > --- PROPULSION ------- Light Treads Light Treads Light Treads > --- UTILITY ---------- Medium Storage Unit Experimental Sensor Array Signal Interpreter > --- WEAPON ----------- EM Pulse Gun Medium Laser > --- INVENTORY -------- Ion Engine Large Storage Unit Small Battery EM Pulse Gun Grenade Launcher [Rating: 17] Favorites ----------- Power Ion Engine Engine Ion Engine Propulsion Light Treads Treads Light Treads Utility Medium Storage Unit Device Sensor Array Storage Medium Storage Unit Processor Signal Interpreter Weapon EM Pulse Gun Energy Gun EM Pulse Gun Launcher Grenade Launcher Build | -11 -10 -10 -9 ------- Run | Yrd Mat Min Mat Slots Evolved 2 | . . . 2 Power . | . . . . Propulsion 1 | . . . 1 Utility 1 | . . . 1 Weapon . | . . . . Parts Attached 27 | 6 13 2 6 Power 2 | 1 1 . . Engine 2 | 1 1 . . Core . | . . . . Reactor . | . . . . Propulsion 6 | 2 3 . 1 Treads 6 | 2 3 . 1 Leg . | . . . . Wheel . | . . . . Hover . | . . . . Flight . | . . . . Utility 7 | 1 3 . 3 Device 3 | . 1 . 2 Storage 3 | 1 1 . 1 Processor 1 | . 1 . . Hackware . | . . . . Protection . | . . . . Artifact . | . . . . Weapon 12 | 2 6 2 2 Energy Gun 9 | 2 4 1 2 Energy Cannon . | . . . . Ballistic Gun . | . . . . Ballistic Cannon . | . . . . Launcher 3 | . 2 1 . Special Weapon . | . . . . Impact Weapon . | . . . . Slashing Weapon . | . . . . Piercing Weapon . | . . . . Special Melee Weapon . | . . . . Unidentified Prototypes 1 | . . . 1 Parts Lost 1 | . . . 1 Power . | . . . . Propulsion . | . . . . Utility . | . . . . Weapon 1 | . . . 1 Highest Loss Streak 1 | . . . 1 To Critical Strikes . | . . . . Average Slot Usage (%) 93 | . 90 100 95 Engine 11 | . 10 14 11 Treads 28 | . 27 28 31 Device 5 | . 6 . 8 Storage 13 | . 14 14 11 Processor 7 | . 3 14 11 Energy Gun 23 | . 23 25 20 Launcher 3 | . 4 2 1 Peak Build Rating 17 | 6 7 8 17 Average Rating 8 | 3 6 7 14 On Entrance 5 | . 6 7 8 Naked Turns . | . . . . Heaviest Build 30 | 14 20 20 30 Greatest Support 60 | 40 40 40 60 Greatest Overweight (x) 5 | . 5 . . Average Overweight (x) . | . . . . Largest Inventory Capacity 15 | 8 10 10 15 Average Capacity 10 | 7 9 10 14 Most Carried 7 | 6 7 6 6 Average Carried 4 | 2 5 5 3 Final Capacity 15 | 8 10 10 15 Final Carried 6 | 2 5 6 4 Class Distribution -------------------- 100% | Mutant Dominant Class ---------------- Mutant | -10/Materials Mutant | -10/Mines Mutant | -9/Materials Resources | -11 -10 -10 -9 ----------- Run | Yrd Mat Min Mat Matter Collected 560 | 260 130 80 90 Remotely . | . . . . Salvage Created 756 | . 273 94 389 Parts 52 | . 31 3 18 Haulers Intercepted . | . . . . Recyclers Shooed . | . . . . Parts Field Recycled . | . . . . Retrieved Matter . | . . . . Parts Self-Destructed . | . . . . Prevented . | . . . . Kills | -11 -10 -10 -9 ------- Run | Yrd Mat Min Mat Combat Hostiles Destroyed 17 | . 8 2 7 Guns 12 | . 3 2 7 AOE 5 | . 5 . . Classes Destroyed 8 | . 6 . 2 Worker 1 | . 1 . . Builder 2 | . 2 . . Recycler 1 | . 1 . . Watcher 6 | . 3 . 3 Swarmer 6 | . 6 . . Grunt 9 | . 2 2 5 Brawler 1 | . . . 1 Sentry 1 | . . . 1 Best Kill Streak 9 | . 9 1 3 Combat Bots Only 4 | . 4 1 3 Max Kills in Single Turn 3 | . 3 1 1 Gunslinging . | . . . . Exploded 2 | . 2 . . Melee . | . . . . Uniques/NPCs Destroyed . | . . . . Combat | -11 -10 -10 -9 -------- Run | Yrd Mat Min Mat Hostile Shots Fired 67 | . 27 6 34 Missed 23 | . 7 3 13 Damage Taken 441 | . 150 67 224 Core 11 | . . 11 . Absorbed by Shields . | . . . . Ignored by Resistances 133 | . 46 19 68 Regen/Repaired (Parts) 149 | . 85 . 64 Core Remaining (%) 97 | 100 . 95 . Volleys Fired 54 | . 19 5 30 Largest 2 | . 2 2 2 Hottest 90 | . 90 90 90 Shots Fired 106 | . 36 10 60 Gun 97 | . 30 9 58 Cannon . | . . . . Launcher 9 | . 6 1 2 Special . | . . . . Kinetic . | . . . . Thermal 43 | . 11 4 28 Explosive 9 | . 6 1 2 Electromagnetic 54 | . 19 5 30 Robot Hit Streak 30 | . 9 11 30 Robot Miss Streak 3 | . 3 1 2 Penetration Max . | . . . . Secondary Targets . | . . . . Shots Hit Robots 74 | . 22 7 45 Core Hits 48 | . 24 6 18 Critical Kills . | . . . . Critical Parts Destroyed . | . . . . Critical Strikes 2 | . 1 . 1 Burn 1 | . . . 1 Corrupt 1 | . 1 . . Melee Attacks . | . . . . Impact . | . . . . Slashing . | . . . . Piercing . | . . . . Sneak Attacks . | . . . . Combat Hostiles . | . . . . Follow-up Attacks . | . . . . Damage Inflicted 1419 | . 599 128 692 Guns 947 | . 287 89 571 Cannons . | . . . . Explosions 472 | . 312 39 121 Melee . | . . . . Ramming . | . . . . Kinetic . | . . . . Thermal 364 | . 99 54 211 Explosive 442 | . 312 9 121 Electromagnetic 613 | . 188 65 360 Impact . | . . . . Slashing . | . . . . Piercing . | . . . . Highest Corruption . | . . . . Average Corruption . | . . . . Corruption Purged . | . . . . Corruption Blocked . | . . . . Overload Shots . | . . . . Overflow Damage . | . . . . Projectiles . | . . . . Explosions . | . . . . Melee . | . . . . Knockbacks . | . . . . Impact . | . . . . Kinetic . | . . . . Secondary . | . . . . Self-Inflicted Damage 29 | . . 29 . Shots 1 | . . 1 . Rammed . | . . . . Targets Rammed . | . . . . Kicked . | . . . . Crushed . | . . . . Highest Temperature 172 | . 120 81 172 Average Temperature 50 | . 44 31 57 Received Heat Transfer 165 | . 45 27 93 Siege Activations . | . . . . Robots Corrupted . | . . . . Combat Hostiles . | . . . . Parts Fried 4 | . 1 . 3 Impact Corruptions . | . . . . Robots Melted . | . . . . Combat Hostiles . | . . . . Parts Melted . | . . . . Heat Transferred 1123 | . 296 124 703 Parts Sabotaged . | . . . . Parts Stolen . | . . . . Parts Stripped . | . . . . Power Chain Reactions 1 | . . 1 . Alert | -11 -10 -10 -9 ------- Run | Yrd Mat Min Mat Peak Influence 194 | . 183 116 194 Initial 39 | . . 39 . Average 59 | . 46 68 94 Maximum Alert Level . | . . . . Low Security (%) 100 | 100 100 100 100 Level 1 . | . . . . Level 2 . | . . . . Level 3 . | . . . . Level 4 . | . . . . Level 5 . | . . . . High Security . | . . . . Max Security . | . . . . Squads Dispatched 2 | . . . 2 Investigation 2 | . . . 2 Extermination . | . . . . Reinforcement . | . . . . Assault . | . . . . Garrison . | . . . . Intercept . | . . . . Searches Triggered . | . . . . Construction Impeded . | . . . . Haulers Reinforced . | . . . . Active Scanning Responses . | . . . . Cargo Convoy Interrupts . | . . . . Stealth | -11 -10 -10 -9 --------- Run | Yrd Mat Min Mat Distress Signals 1 | . . . 1 Communications Jammed . | . . . . Distress Signals . | . . . . Times Spotted 23 | . 11 2 10 Peak Tracking Total 4 | . 4 1 3 Tactical Retreats 1 | . . 1 . Traps | -11 -10 -10 -9 ------- Run | Yrd Mat Min Mat Traps Triggered 3 | . 3 . . Indirectly . | . . . . Trap Hack Attempts . | . . . . Triggered . | . . . . Disarmed . | . . . . Reprogrammed . | . . . . Reused . | . . . . Traps Extracted . | . . . . Installed . | . . . . Triggered . | . . . . Machines | -11 -10 -10 -9 ---------- Run | Yrd Mat Min Mat Machines Disabled . | . . . . Max in Single Turn . | . . . . Machines Repaired . | . . . . Machines Dismantled . | . . . . Machines Sabotaged . | . . . . Overloaded Fab Kills . | . . . . Hacking | -11 -10 -10 -9 --------- Run | Yrd Mat Min Mat Machines Accessed 8 | . 6 . 2 Terminals 4 | . 3 . 1 Fabricators . | . . . . Repair Stations 2 | . 1 . 1 Recycling Units 2 | . 2 . . Scanalyzers . | . . . . Garrison Access . | . . . . Total Hacks 17 | . 10 . 7 Successful 12 | . 8 . 4 Failed 5 | . 2 . 3 Catastrophic 3 | . . . 3 Database Lockouts . | . . . . Manual . | . . . . Terminals 7 | . 5 . 2 Fabricators . | . . . . Repair Stations 7 | . 2 . 5 Recycling Units 3 | . 3 . . Scanalyzers . | . . . . Garrison Access . | . . . . Terminal Hacks 4 | . 4 . . Prototype ID Bank 1 | . 1 . . Registered Components 1 | . 1 . . Zone Layout 2 | . 2 . . Fabricator Hacks . | . . . . Repair Station Hacks 6 | . 2 . 4 Scan Component 3 | . 1 . 2 Repair 3 | . 1 . 2 Recycling Unit Hacks 2 | . 2 . . Report Inventory 2 | . 2 . . Scanalyzer . | . . . . Garrison Access Hacks . | . . . . Unauthorized Hacks . | . . . . Terminals . | . . . . Fabricators . | . . . . Repair Stations . | . . . . Recycling Units . | . . . . Scanalyzers . | . . . . Garrison Access . | . . . . Data Cores Recovered . | . . . . Used . | . . . . Hacking Detections 5 | . 3 . 2 Full Trace Events 2 | . . . 2 Feedback Events . | . . . . Feedback Blocked . | . . . . Robot Schematics Acquired . | . . . . Robots Built . | . . . . Authchips . | . . . . Time . | . . . . Total Robot Build Rating . | . . . . Part Schematics Acquired . | . . . . Parts Built . | . . . . Authchips . | . . . . Time . | . . . . Total Part Build Rating . | . . . . Parts Repaired 3 | . 1 . 2 Time 160 | . 26 . 134 Parts Recycled . | . . . . Recycled Matter . | . . . . Retrieved Matter . | . . . . Retrieved Components . | . . . . Parts Scanalyzed . | . . . . Part Schematics Acquired . | . . . . Parts Damaged . | . . . . Bothacking | -11 -10 -10 -9 ------------ Run | Yrd Mat Min Mat Used RIF Installer . | . . . . Robots Hacked . | . . . . Non-combat . | . . . . Combat . | . . . . Robot Hacks Applied . | . . . . Relay Couplers Released . | . . . . Fabnet Peak Effective % . | . . . . Robots Rewired . | . . . . Allies Hacked . | . . . . Hacks Repelled . | . . . . Allies | -11 -10 -10 -9 -------- Run | Yrd Mat Min Mat Total Allies . | . . . . Largest Group . | . . . . Highest-Rated Group . | . . . . Highest-Rated Ally . | . . . . Total Orders . | . . . . Ally Attacks . | . . . . Total Damage . | . . . . Kills . | . . . . Allies Corrupted . | . . . . Allies Melted . | . . . . Intel | -11 -10 -10 -9 ------- Run | Yrd Mat Min Mat Robot Analysis Total . | . . . . Derelict Logs Recovered 1 | . . 1 . Drone Launches . | . . . . Drone Recoveries . | . . . . Exploration | -11 -10 -10 -9 ------------- Run | Yrd Mat Min Mat Turns Passed 2314 | 76 1192 610 436 Spaces Moved 1230 | 44 672 369 145 Core 9 | 7 2 . . Treads 1221 | 37 670 369 145 Legs . | . . . . Wheels . | . . . . Hover . | . . . . Flight . | . . . . Fastest Speed 50 | 50 160 160 160 Average Speed 159 | 142 160 160 160 Slowest Speed 300 | 160 300 160 160 Overloaded Moves . | . . . . Propulsion Burnouts . | . . . . Robots Hopped . | . . . . Cave-ins Triggered . | . . . . Exploration Rate (%) 40 | 5 89 54 15 Regions Visited 3 Branch Regions 1 Pre-discovered Areas 1 | . . 1 . Known Exits Taken 2 | . 1 1 . Unknown Exits Taken 1 | 1 . . . Scrap Searched 2 | . . 2 . Spaces Dug 3 | . 3 . . Terrain Destroyed 43 | . 19 12 12 Melee . | . . . . Projectile . | . . . . AOE 43 | . 19 12 12 Terrain Rammed . | . . . . Walls Destroyed . | . . . . Machines Disabled . | . . . . Actions | -11 -10 -10 -9 --------- Run | Yrd Mat Min Mat Total 1472 | 57 748 378 289 Wait 133 | . 32 . 101 Move 1227 | 43 671 368 145 Hop . | . . . . Pick Up 27 | 8 12 2 5 Fast Attach . | . . . . Attach 18 | 6 8 . 4 Detach . | . . . . Swap 9 | . 5 2 2 Drop 4 | . 1 1 2 Fire 54 | . 19 5 30 Melee . | . . . . Ram . | . . . . Kick . | . . . . Crush . | . . . . Escape Stasis . | . . . . Rewire . | . . . . Trap . | . . . . Miscellaneous . | . . . . Route ------- -11/Scrapyard -10/Materials (discovered 3 exits: *Mat x2 / *Min) -10/Mines -9/Materials History --------- Turn | Location | Event 13 | -11/Scrapyard | Discovered new exit (range 15) 77 | -11/Scrapyard | Entered Materials 218 | -10/Materials | Discovered new exit (range 9) 303 | -10/Materials | Build established: Mutant 440 | -10/Materials | Discovered new exit (range 19) 957 | -10/Materials | Discovered new exit (range 16) 986 | -10/Materials | Identified exit to Materials 1061 | -10/Materials | Repaired Lgt. Treads 1202 | -10/Materials | Identified exit to Mines 1269 | -10/Materials | Entered Mines 1435 | -10/Mines | Found a damaged Exp. Sensor Array with a note attached 1438 | -10/Mines | Found Prototype Device 1452 | -10/Mines | Learned location of Storage (-9) 1492 | -10/Mines | YI-UF0 nonchalantly dropped a Grenade Launcher on the ground 1732 | -10/Mines | Discovered exit to Materials (range 12) 1879 | -10/Mines | Entered Materials 1879 | -9/Materials | Evolved 2 slots: Propulsion x1, Utility x1 1879 | -9/Materials | Identified Exp. Sensor Array 2129 | -9/Materials | Repaired Grenade Launcher 2238 | -9/Materials | Repaired Exp. Sensor Array 2315 | -9/Materials | Self-destructed Last Messages --------------- 02226_ W-16 Scout destroyed. 02238_ Repair station completes Exp. Sensor Array repairs. 02242_ Acquired Exp. Sensor Array. 02248_ Acquired 10 matter. 02249_ R-06 Scavenger collects Hover Unit. 02251_ W-16 Scout distress signal alerts nearby ally. 02252_ W-16 Scout destroyed. 02255_ K-01 Serf collects debris. 02288_ Atomic Centrifuge disabled. 02288_ EM Pulse Gun destroyed. 02294_ Y-45 Defender misfires. 02303_ Heat Sink fried. 02303_ Imp. Ion Engine fried. 02303_ Heat Sink fried. 02303_ Y-45 Defender destroyed. 02310_ K-01 Serf collects debris. 02311_ Acquired Corrupted Lgt. Treads. 02314_ Acquired 10 matter. Map ----- +----------------------------------------------------+ | ????????????????????????????????????????????????? | | ??????????????????????????#########?????????????? | | ??????????????????????????# #?????????????? | | ??????????????????????????# T #?????????????? | | ??????????????????????????# ##########????? | | ??????????????????????????# # #####? | | ??????????????????????????# # """# #? | | ??????????????????????????# # """# #? | | ??????????????????????????# """ # """# #? | | ??????????????????????????+^ """ # % +%= ## | | ??????????????????????????# """ # """#[% | | ??????????????????????????# """ # """# ## | | ??????????????????????????# + """# #? | | ??????????????????????????#########% ! # #? | | ???????????????????????????????# ########### #? | | ???????????????????????????????#########"T"# #? | | ???????????????????????????????# !%= #? | | ???????????????????????????????# #? | | ???????????????????????????????# #? | | ???????????????????????????????# """ #? | | ???????????????????????????????# """ #? | | ????????????????????????????????# """ !! #? | | ????????????????????????????????#!! !! #? | | ???????????????????????##########!! ! ## | | ?????????????????# ####! # | | ?????????????????# k ;@ """ # | | ?????????????????#+##### """ t!%! % | | ???????????????????????# ] """ # = ####/######## | | ???????????????????????# # # = = #????? | | ???????????????????????# " # #*%""" #????? | | ???????????????????????# """ # # ["R" #????? | | ??????????????????????x# """ # # " " #????? | | ???????????????????????# # !# #????? | | ???????????????????????########## =+% #????? | | ????????????????????????? ^ ########????? | | ????????????????????????######## #???????????? | | ???????????????????????????????# ???????????? | | ???????????????????????????????#!!//!???????????? | | ???????????????????????????????#!!//!???????????? | | ???????????????????????????????#######??????????? | | ????????????????????????????????????????????????? | | ????????????????????????????????????????????????? | | ????????????????????????????????????????????????? | | ????????????????????????????????????????????????? | | ????????????????????????????????????????????????? | | ????????????????????????????????????????????????? | | ????????????????????????????????????????????????? | | ????????????????????????????????????????????????? | | ????????????????????????????????????????????????? | | ????????????????????????????????????????????????? | +----------------------------------------------------+ Best States ------------- Heat Dissipation 28 Energy Generation 10 Energy Capacity 250 Matter Stores 300 Matter Capacity 300 Sight Range 16 Robot Scan Range 20 Terrain Scan Density 10 Resistance: KI 20 Resistance: TH 20 Resistance: EX 20 Resistance: EM 20 Resistance: I 20 Resistance: S 20 Resistance: P 20 Evasion (%) 50 Recoil Reduction 3 Offensive Hacking 10 Item Schematics ----------------- None Robot Schematics ------------------ None Fabricated ------------ Nothing Alien Tech Used ----------------- None Achievements -------------- None Challenges ------------ None Game ------ Seed LatentActuatorKinecellerator Manual? 0 Play Time 00:22:07 Cumulative 14.7 hours Start 2024.09.09 @ 06:31:49 End 2024.09.09 @ 15:44:47 Sessions 3 Manual Loads 0 Difficulty Adventurer Special Mode None Game No. 22 Rogue 5 Adventurer 15 Explorer 2 Win Type - Total 0 Types 0/0/0/0/0/0/0/0/0 Lore% 19 Gallery% 11 Achievement% 13 Wizard Run 0 Options --------- Layout 2 ASCII 0 Keyboard 0 Movement Mouse Keybinds 0 Fullscreen 2 Font 16/SmallcapsGlow Map View 50x49 Zoom Use 0% Tactical HUD 1 Map Filters NONE Filters NONE Steam SD RUN: c418ac70-c676-453e-9c4c-748244eb54be